Cogmind - Beta 13 X1 @@@ ROGUE MODE // 2023.07.15 @ 19:46:35 Player: aoemica Result: Destroyed by 9N-OG7(R) with Subdweller Machine Gun Performance ------------- Evolutions (0) 0 Regions Visited (2) 400 Robots Destroyed (31) 155 Value Destroyed (655) 655 Prototype IDs (0) 0 Alien Tech Used (0) 0 Bonus (0) 0 TOTAL SCORE: 1210 Bonus ------- None Cogmind --------- Core Integrity 0/250 Matter 178/300 Energy 40/100 System Corruption 2% Temperature Cool (0) Movement Rolling (120) Ox1 Location -10/Subcaves Parts ------- > --- POWER (1) -------- (None) > --- PROPULSION (2) --- Subdweller Monowheel > --- UTILITY (2) ------ Large Storage Unit > --- WEAPON (2) ------- EM Pulse Gun Medium Laser > --- INVENTORY (15) --- Disposable Heat Sink Structural Scanner Seismic Detector Seismic Detector EM Pulse Gun Light Assault Rifle Light Assault Rifle Subdweller Shrapnel Launcher Mining Laser Mining Laser Peak State ------------ > --- POWER ------------ Light Ion Engine > --- PROPULSION ------- Light Treads Light Treads > --- UTILITY ---------- Heat Sink Large Storage Unit > --- WEAPON ----------- Battle Rifle Subdweller Machine Gun > --- INVENTORY -------- Wheel Compact Wheel Subdweller Monowheel Disposable Heat Sink Structural Scanner Seismic Detector Seismic Detector EM Pulse Gun EM Pulse Gun Medium Laser Small Laser Light Assault Rifle Light Assault Rifle Mining Laser Mining Laser [Rating: 10] Favorites ----------- Power Light Ion Engine Engine Light Ion Engine Propulsion Light Treads Treads Light Treads Leg Aluminum Leg Wheel Subdweller Monowheel Utility Large Storage Unit Device Structural Scanner Storage Large Storage Unit Weapon Medium Laser Energy Gun Medium Laser Ballistic Gun Assault Rifle Ballistic Cannon Light Cannon Special Weapon Mining Laser Build | -11 -10 -10 ------- Run | Jun Mat Sub Slots Evolved . | . . . Power . | . . . Propulsion . | . . . Utility . | . . . Weapon . | . . . Parts Attached 34 | . 13 21 Power 2 | . 2 . Engine 2 | . 2 . Core . | . . . Reactor . | . . . Propulsion 10 | . 5 5 Treads 8 | . 5 3 Leg . | . . . Wheel 2 | . . 2 Hover . | . . . Flight . | . . . Utility 7 | . 2 5 Device 6 | . 1 5 Storage 1 | . 1 . Processor . | . . . Hackware . | . . . Protection . | . . . Artifact . | . . . Weapon 15 | . 4 11 Energy Gun 7 | . 2 5 Energy Cannon . | . . . Ballistic Gun 5 | . 1 4 Ballistic Cannon 1 | . . 1 Launcher . | . . . Special Weapon 2 | . 1 1 Impact Weapon . | . . . Slashing Weapon . | . . . Piercing Weapon . | . . . Special Melee Weapon . | . . . Unidentified Prototypes . | . . . Parts Lost 16 | . 3 13 Power 2 | . 1 1 Propulsion 6 | . . 6 Utility 1 | . . 1 Weapon 7 | . 2 5 Highest Loss Streak 5 | . 2 5 To Critical Strikes 2 | . . 2 Average Slot Usage (%) 96 | . 96 96 Engine 13 | . 14 13 Treads 26 | . 27 24 Device 11 | . 10 12 Storage 14 | . 14 14 Energy Gun 18 | . 23 6 Ballistic Gun 9 | . 4 21 Naked Turns . | . . . Heaviest Build 31 | 13 27 31 Greatest Support 40 | 20 40 40 Greatest Overweight (x) 1 | . . 1 Average Overweight (x) . | . . . Largest Inventory Capacity 15 | . 15 15 Average Capacity 13 | . 13 15 Most Carried 15 | . 15 15 Average Carried 11 | . 10 14 Final Capacity 15 | 8 15 15 Final Carried 15 | 6 15 10 Class Distribution -------------------- 100% | Mutant Dominant Class ---------------- Mutant | -10/Materials Mutant | -10/Subcaves Resources | -11 -10 -10 ----------- Run | Jun Mat Sub Matter Collected 677 | 170 333 174 Remotely . | . . . Salvage Created 873 | . 561 312 Parts 59 | . 46 13 Haulers Intercepted 2 | . 2 . Recyclers Shooed 2 | . 2 . Parts Field Recycled . | . . . Retrieved Matter . | . . . Parts Self-Destructed 13 | . . 13 Prevented . | . . . Kills | -11 -10 -10 ------- Run | Jun Mat Sub Combat Hostiles Destroyed 19 | . 10 9 Guns 18 | . 10 8 Classes Destroyed 8 | . 7 1 Worker 4 | . 4 . Tunneler 2 | . 2 . Hauler 2 | . 2 . Operator 1 | . 1 . Watcher 3 | . 3 . Swarmer 6 | . 6 . Grunt 4 | . 4 . Subdweller 9 | . . 9 Best Kill Streak 8 | . 8 3 Combat Bots Only 3 | . 3 3 Max Kills in Single Turn 1 | . 1 1 Gunslinging . | . . . Exploded . | . . . Melee . | . . . Uniques/NPCs Destroyed . | . . . Combat | -11 -10 -10 -------- Run | Jun Mat Sub Damage Taken 1898 | . 531 1367 Core 258 | . 52 206 Absorbed by Shields . | . . . Core Remaining (%) 100 | 100 . . Volleys Fired 106 | . 56 50 Largest 2 | . 2 2 Hottest 100 | . 100 100 Shots Fired 204 | . 112 92 Gun 197 | . 111 86 Cannon 3 | . . 3 Launcher . | . . . Special 4 | . 1 3 Kinetic 106 | . 61 45 Thermal 90 | . 51 39 Explosive . | . . . Electromagnetic 8 | . . 8 Robot Hit Streak 29 | . 11 29 Robot Miss Streak 6 | . 6 1 Penetration Max . | . . . Secondary Targets 1 | . . 1 Max Gunslinging Chain 1 | . . 1 Shots Hit Robots 142 | . 64 78 Core Hits 53 | . 33 20 Critical Kills . | . . . Critical Parts Destroyed . | . . . Critical Strikes 11 | . 4 7 Burn 11 | . 4 7 Melee Attacks . | . . . Impact . | . . . Slashing . | . . . Piercing . | . . . Sneak Attacks . | . . . Combat Hostiles . | . . . Follow-up Attacks . | . . . Damage Inflicted 2157 | . 953 1204 Guns 2019 | . 867 1152 Cannons 52 | . . 52 Explosions . | . . . Melee . | . . . Ramming 86 | . 86 . Kinetic 1164 | . 463 701 Thermal 832 | . 404 428 Explosive . | . . . Electromagnetic 75 | . . 75 Impact . | . . . Slashing . | . . . Piercing . | . . . Highest Corruption 2 | . 2 2 Average Corruption 2 | . 2 2 Corruption Purged . | . . . Corruption Blocked . | . . . Effects 36 | . 23 13 Message Errors 6 | . 3 3 Matter Fused 11 | . 9 2 Heat Flow Errors 7 | . 6 1 Energy Discharges 4 | . 2 2 Data Loss (minor) 3 | . 1 2 Misfires 2 | . 1 1 Alerts 1 | . 1 . Weapon Failures 2 | . . 2 Overload Shots . | . . . Overflow Damage . | . . . Projectiles . | . . . Explosions . | . . . Melee . | . . . Knockbacks 1 | . . 1 Impact . | . . . Kinetic 1 | . . 1 Secondary . | . . . Self-Inflicted Damage . | . . . Shots . | . . . Rammed 22 | . 22 . Targets Rammed 23 | . 23 . Kicked . | . . . Crushed 1 | . 1 . Highest Temperature 273 | . 273 91 Average Temperature 56 | . 56 51 Received Heat Transfer 342 | . 222 120 Siege Activations . | . . . Robots Corrupted . | . . . Combat Hostiles . | . . . Parts Fried . | . . . Impact Corruptions . | . . . Robots Melted 2 | . 1 1 Combat Hostiles 1 | . . 1 Parts Melted 6 | . 3 3 Heat Transferred 3186 | . 1410 1776 Parts Sabotaged . | . . . Parts Stolen . | . . . Parts Stripped . | . . . Power Chain Reactions . | . . . Missiles Intercepted . | . . . Alert | -11 -10 -10 ------- Run | Jun Mat Sub Peak Influence 259 | . 259 . Initial . | . . . Average 34 | . 34 . Maximum Alert Level 1 | . 1 . Low Security (%) 95 | . 95 . Level 1 4 | . 4 . Level 2 . | . . . Level 3 . | . . . Level 4 . | . . . Level 5 . | . . . High Security . | . . . Max Security . | . . . Squads Dispatched 1 | . 1 . Investigation . | . . . Extermination . | . . . Reinforcement 1 | . 1 . Assault . | . . . Garrison . | . . . Intercept . | . . . Searches Triggered . | . . . Construction Impeded . | . . . Haulers Reinforced . | . . . Active Scanning Responses . | . . . Cargo Convoy Interrupts . | . . . Stealth | -11 -10 -10 --------- Run | Jun Mat Sub Distress Signals 1 | . 1 . Communications Jammed . | . . . Distress Signals . | . . . Times Spotted 32 | . 20 12 Peak Tracking Total 5 | . 5 2 Tactical Retreats 4 | . 3 1 Traps | -11 -10 -10 ------- Run | Jun Mat Sub Traps Triggered 1 | . 1 . Indirectly . | . . . Trap Hack Attempts . | . . . Triggered . | . . . Disarmed . | . . . Reprogrammed . | . . . Reused . | . . . Traps Extracted . | . . . Installed . | . . . Triggered . | . . . Machines | -11 -10 -10 ---------- Run | Jun Mat Sub Machines Disabled . | . . . Max in Single Turn . | . . . Machines Repaired . | . . . Machines Sabotaged . | . . . Overloaded Fab Kills . | . . . Hacking | -11 -10 -10 --------- Run | Jun Mat Sub Machines Accessed 5 | . 5 . Terminals 4 | . 4 . Fabricators . | . . . Repair Stations 1 | . 1 . Recycling Units . | . . . Scanalyzers . | . . . Garrison Access . | . . . Total Hacks 11 | . 11 . Successful 5 | . 5 . Failed 6 | . 6 . Catastrophic . | . . . Database Lockouts . | . . . Manual 9 | . 9 . Terminals 8 | . 8 . Fabricators . | . . . Repair Stations 3 | . 3 . Recycling Units . | . . . Scanalyzers . | . . . Garrison Access . | . . . Terminal Hacks 1 | . 1 . Robot Analysis 1 | . 1 . Fabricator Hacks . | . . . Repair Station Hacks 1 | . 1 . Scan Component 1 | . 1 . Recycling Unit Hacks . | . . . Scanalyzer . | . . . Garrison Access Hacks . | . . . Unauthorized Hacks 3 | . 3 . Terminals 3 | . 3 . Track 1 | . 1 . Botnet 2 | . 2 . Fabricators . | . . . Repair Stations . | . . . Recycling Units . | . . . Scanalyzers . | . . . Garrison Access . | . . . Data Cores Recovered . | . . . Used . | . . . Hacking Detections 5 | . 5 . Full Trace Events . | . . . Feedback Events . | . . . Feedback Blocked . | . . . Robot Schematics Acquired . | . . . Robots Built . | . . . Authchips . | . . . Time . | . . . Total Robot Build Rating . | . . . Part Schematics Acquired . | . . . Parts Built . | . . . Authchips . | . . . Time . | . . . Total Part Build Rating . | . . . Parts Repaired . | . . . Time . | . . . Parts Recycled . | . . . Recycled Matter . | . . . Retrieved Matter . | . . . Retrieved Components . | . . . Parts Scanalyzed . | . . . Part Schematics Acquired . | . . . Parts Damaged . | . . . Bothacking | -11 -10 -10 ------------ Run | Jun Mat Sub Used RIF Installer . | . . . Robots Hacked . | . . . Non-combat . | . . . Combat . | . . . Robot Hacks Applied . | . . . Relay Couplers Released . | . . . Fabnet Peak Effective % . | . . . Robots Rewired . | . . . Allies Hacked . | . . . Hacks Repelled . | . . . Allies | -11 -10 -10 -------- Run | Jun Mat Sub Total Allies . | . . . Largest Group . | . . . Highest-Rated Group . | . . . Highest-Rated Ally . | . . . Total Orders . | . . . Ally Attacks . | . . . Total Damage . | . . . Kills . | . . . Allies Corrupted . | . . . Allies Melted . | . . . Intel | -11 -10 -10 ------- Run | Jun Mat Sub Robot Analysis Total 1 | . 1 . Derelict Logs Recovered . | . . . Drone Launches . | . . . Drone Recoveries . | . . . Exploration | -11 -10 -10 ------------- Run | Jun Mat Sub Turns Passed 3459 | . 2499 960 Spaces Moved 1435 | 1 1004 430 Core . | . . . Treads 1396 | . 990 406 Legs 15 | 1 14 . Wheels 24 | . . 24 Hover . | . . . Flight . | . . . Fastest Speed 120 | 120 120 120 Average Speed 159 | 120 159 158 Slowest Speed 240 | 120 160 240 Overloaded Moves . | . . . Propulsion Burnouts . | . . . Robots Hopped . | . . . Cave-ins Triggered . | . . . Exploration Rate (%) 37 | 2 84 27 Regions Visited 2 Branch Regions 1 Pre-discovered Areas . | . . . Known Exits Taken . | . . . Unknown Exits Taken 2 | 1 1 . Scrap Searched 1 | . . 1 Spaces Dug . | . . . Terrain Destroyed . | . . . Melee . | . . . Projectile . | . . . AOE . | . . . Terrain Rammed . | . . . Walls Destroyed . | . . . Machines Disabled . | . . . Actions | -11 -10 -10 --------- Run | Jun Mat Sub Total 2386 | . 1778 608 Wait 754 | . 656 98 Move 1433 | . 1003 430 Hop . | . . . Pick Up 24 | . 18 6 Fast Attach 3 | . 2 1 Attach 14 | . 4 10 Detach 3 | . 2 1 Swap 17 | . 7 10 Drop 9 | . 7 2 Fire 106 | . 56 50 Melee . | . . . Ram . | . . . Kick . | . . . Crush 23 | . 23 . Escape Stasis . | . . . Rewire . | . . . Trap . | . . . Miscellaneous . | . . . Route ------- -11/Junkyard -10/Materials (discovered 3 exits: [*Mat x2] / [*Sub]) -10/Subcaves (discovered 1 exit: [*Mat]) History --------- Turn | Location | Event 1 | -11/Junkyard | Discovered new exit (range 0) 1 | -11/Junkyard | Entered Materials 344 | -10/Materials | Build established: Mutant 572 | -10/Materials | Discovered new exit (range 16) 782 | -10/Materials | Discovered new exit (range 7) 1188 | -10/Materials | Discovered new exit (range 10) 2500 | -10/Materials | Entered Subcaves 2640 | -10/Subcaves | Discovered new exit (range 8) 2656 | -10/Subcaves | Shifting Twisted Machinery released Battle Rifle 2692 | -10/Subcaves | Shifting Twisted Machinery released Sub. Machine Gun 2787 | -10/Subcaves | A swath of the cavern ceiling suddenly collapsed 2792 | -10/Subcaves | Core integrity fell below 50% 2838 | -10/Subcaves | Shifting Twisted Machinery released Hvy. Riot Gun 2863 | -10/Subcaves | Shifting Twisted Machinery released Flamer 3383 | -10/Subcaves | Core integrity fell below 20% 3400 | -10/Subcaves | Shifting Twisted Machinery released Flamer 3404 | -10/Subcaves | Lost 5 parts (3n1u1w) 3460 | -10/Subcaves | Destroyed by 9N-OG7(R) with Subdweller Machine Gun Last Messages --------------- 03367_ Acquired Lgt. Cannon. 03368_ 6C-G67(R): "ARGHSUB!" 03369_ Heat Sink destroyed. 03371_ Lgt. Treads destroyed. 03371_ Battle Rifle destroyed. 03373_ Com. Wheel destroyed. 03373_ 7N-PIW(R) destroyed. 03373_ Switching to secondary target: 6C-G67(R). 03382_ 6C-G67(R) destroyed. 03389_ Acquired 2 matter. Flamer falls loose from the Twisted Machinery. 03426_ Sub. Machine Gun shoots sparks and powers down. 03431_ Broken Sub. Machine Gun destroyed. 03432_ 61-LNG(R) knocked back. 03435_ Sub. Machine Gun destroyed. 03441_ Lgt. Cannon destroyed. 03445_ Lgt. Ion Engine destroyed. 03449_ 61-LNG(R) destroyed. 03457_ 9N-OG7(R) affixes Scrap Shield Fragment to Scrap Shield. 03458_ 9N-OG7(R) suffers critical hit (Burn). Map ----- +----------------------------------------------------+ | ?????????????????????????????????????????????????? | | ?????????????????????????????????????????????????? | | ?????????????????????????????????????????????????? | | ?????????????????????????????????????????????????? | | ?????????????????????????????????????????????????? | | ?????????????????????????????????????????????????? | | ?????????????????????????????????????????????????? | | ?????????????????????????????????????????????????? | | ?????????????????????????????????????????????????? | | ?????????????????????????????????????????????????? | | ?????????????????????????????????????????????????? | | ?????????????????????????????????????????????????? | | ?????????????????????????????????????????????????? | | ?????????????????????????????????????????????????? | | ?????????????????????????????????????????????????? | | ??????????????????????????????????###????????????? | | ????????????????????????????????? #???????????? | | ???????????????????????????????? #????????????? | | ??????????????????????????????? #????????????? | | ???????????????????????#####??# #????????????? | | ???????????????????????# ### ###??????????? | | ?????????????###??##??? #??????????? | | ???????????? ### #??# #??????????? | | ????????????? """??# #??????????? | | ????????????? " ??# ????????????? | | ????????????? " #??#@ #???????????????????? | | ????????????? "" ###R= ##???????????????????? | | ????????????" "" %%##????????????????????? | | ????????????????#### %#### #??????????????????? | | ???????????????????# "##""""??????????????????? | | ???????????????????# """""#???????????????????? | | ???????????????????#### |" #???????????????????? | | ??????????????????????## "" ##?#?????????????????? | | ??????????????????????## """## ##????????????????? | | ?????????????????????## """ # #????????????? | | ????????????????????## " #????????????? | | ???????????????????### ### ##????????????? | | ???????????????###### ##??? #?????????????? | | ????????? ##??###### #????????????????????? | | ????# ? ###?# #????????????????????? | | ??? #### #????????????????????? | | ?? ### ##???????????????????? | | ?????# #???????????????????? | | ??????#### # ##??????????????????? | | ########### # & # ## #??????????????????? | | ######## ### # & # # #####???????????????? | | ## ## ##### ######??????????????? | | #" ##### ###??????????????? | | ## #### ##??????????????? | | ## ## & ##??????????????? | +----------------------------------------------------+ Best States ------------- Heat Dissipation 35 Energy Generation 10 Energy Capacity 250 Matter Stores 300 Matter Capacity 300 Sight Range 16 Terrain Scan Density 10 Evasion (%) 55 Recoil Reduction 2 Item Schematics ----------------- None Robot Schematics ------------------ None Fabricated ------------ Nothing Alien Tech Used ----------------- None Achievements -------------- None Challenges ------------ None Game ------ Seed DisruptorBurstSuite Manual? 0 Play Time 00:16:05 Cumulative 912.7 hours Start 2023.07.15 @ 19:34:52 End 2023.07.15 @ 19:46:35 Sessions 1 Manual Loads 0 Difficulty Rogue Special Mode None Game No. 417 Rogue 416 Adventurer 1 Explorer 0 Win Type - Total 136 Types 33/12/21/4/2/1/58/3/2 Lore% 96 Gallery% 98 Achievement% 92 Wizard Run 0 Options --------- ASCII 1 Keyboard 1 Movement Numpad Keybinds 0 Fullscreen 0 Font 18/Smallcaps Map View 76x50 Tactical HUD 1 Map Filters NONE Filters NONE Steam 1 RUN: 09c76aec-c2fd-4f37-acbe-c4996bc0b2cf